fUST/lending_fUST_20250908
["ID","MTS","AMOUNT","RATE_DAILY","PERIOD"]
[384223298,1757293855193,-793.9,0.0001589,2]
[384223300,1757293855203,-1124.8,0.0001589,2]
[384223302,1757293855212,-1960.88,0.0001589,2]
[384223304,1757293855222,-738.44,0.0001589,2]
[384223306,1757293855232,-2121.4,0.0001589,2]
[384223308,1757293855242,-3405.04,0.0001589,2]
[384223310,1757293855251,-1342.85,0.0001589,2]
[384223312,1757293855260,-815.74,0.0001589,2]
[384223314,1757293855270,-732.20341583,0.0001589,2]
[384223369,1757293855798,-451.80658417,0.0001589,2]
[384223372,1757293855815,-790.95276795,0.0001589,2]
[384223409,1757293917672,355.3,0.00012329,2]
[384223410,1757293928078,296.09,0.00012329,2]
[384223411,1757293938735,246.74,0.00012329,2]
[384223412,1757293949308,205.62,0.00012329,2]
[384223413,1757293959745,171.35,0.00012329,2]
[384223414,1757293967815,1700.0,0.00012602,2]
[384223415,1757293970288,756.8618082,0.00012329,2]
[384223416,1757293970310,99.8881918,0.00012329,2]
[384223417,1757293980731,438.28,0.00012329,2]
[384223421,1757294372252,201.0,0.00025,30]
[384223425,1757294579241,207.86243779,0.00013061,2]
[384223426,1757294613825,9253.97937041,0.00012673,2]
[384223427,1757294613848,10000.01,0.00012673,2]
[384223428,1757294613870,746.03062959,0.00012673,2]
[384223471,1757295031933,-162.89081125,0.00013496,2]
[384223474,1757295031942,-337.10918875,0.000135,2]
[384223553,1757295040124,-414.48801411,0.000135,2]
[384223554,1757295040135,-162.89081125,0.00013516,2]
[384223555,1757295040146,-162.89081125,0.00013537,2]
[384223556,1757295040155,-162.89081125,0.00013557,2]
[384223557,1757295040168,-162.89081125,0.00013578,2]
[384223558,1757295040177,-1200.0,0.00013595,2]
[384223560,1757295040187,-1200.0,0.00013596,2]
[384223561,1757295040196,-300.0,0.00013596,2]
[384223562,1757295040206,-300.0,0.00013596,2]
[384223563,1757295040216,-300.0,0.00013596,2]
[384223564,1757295040225,-4563.96298923,0.00013597,2]
[384223566,1757295040238,-162.89081125,0.00013598,2]
[384223568,1757295040248,-2031.63611793,0.00013598,2]
[384223570,1757295040257,-6742.03054008,0.00013598,2]
[384223572,1757295040269,-609.09,0.00013598,2]
[384223584,1757295048071,159.57,0.0002199,120]
[384223585,1757295048117,153.14,0.0002199,120]
[384223591,1757295163024,1833.0,0.00028804,60]
[384223592,1757295255997,481.73203715,0.00024657,120]
[384223594,1757295303124,22140.55,0.00028804,60]
[384223595,1757295314020,1039.2,0.0002739,120]
[384223632,1757295858710,158.00038094,0.00028807,120]
[384223643,1757296100535,439.2590106,0.00012748,2]
[384223653,1757296232139,-355.43458289,0.00013287,2]
[384223655,1757296232151,-111.8097513,0.000135,2]
[384223661,1757296232193,-888.1902487,0.000135,2]
[384223663,1757296232203,-1000.0,0.000135,3]
[384223682,1757296232343,-300.0,0.00013597,2]
[384223684,1757296232356,-1200.0,0.00013597,2]
[384223686,1757296232366,-1885.98515867,0.00013598,2]
[384223688,1757296232376,-976.13049652,0.00013598,2]
[384223690,1757296232386,-2546.66753432,0.00013598,2]
[384223692,1757296232396,-1200.0,0.00013694,2]
[384223694,1757296232406,-595.50040117,0.00013697,2]
[384223696,1757296232415,-358.8930737,0.00013697,2]
[384223698,1757296232425,-500.0,0.00013697,2]
[384223700,1757296232435,-501.89899649,0.00013697,2]
[384223703,1757296232445,-616.95031658,0.00013697,2]
[384223704,1757296232455,-500.0,0.00013697,2]
[384223706,1757296232464,-181.31394595,0.00013697,2]
[384223708,1757296232473,-271.46722205,0.00013697,2]
[384223710,1757296232483,-484.75949799,0.00013698,2]
[384223712,1757296232493,-481.27112784,0.00013698,2]
[384223714,1757296232502,-480.0,0.00013698,2]
[384223717,1757296232512,-480.70440782,0.00013698,2]
[384223718,1757296232521,-480.0,0.00013698,2]
[384223720,1757296232531,-480.0,0.00013698,2]
[384223722,1757296232540,-486.01887152,0.00013698,2]
[384223725,1757296232550,-480.0,0.00013698,2]
[384223726,1757296232563,-480.0,0.00013698,2]
[384223728,1757296232573,-480.0,0.00013698,2]
[384223730,1757296232583,-480.0,0.00013698,2]
[384223733,1757296232594,-480.0,0.00013698,2]
[384223735,1757296232604,-480.0,0.00013698,2]
[384223736,1757296232614,-480.0,0.00013698,2]
[384223739,1757296232624,-480.0,0.00013698,2]
[384223740,1757296232633,-480.0,0.00013698,2]
[384223742,1757296232643,-480.0,0.00013698,2]
[384223745,1757296232653,-480.0,0.00013698,2]
[384223746,1757296232662,-741.37,0.00013698,2]
[384223748,1757296232672,-480.0,0.00013698,2]
[384223750,1757296232682,-480.0,0.00013698,2]
[384223753,1757296232692,-480.0,0.00013698,2]
[384223755,1757296232702,-480.0,0.00013698,2]
[384223757,1757296232711,-480.0,0.00013698,2]
[384223758,1757296232720,-300.96574831,0.00013698,2]
[384223760,1757296232730,-480.0,0.00013698,2]
[384223762,1757296232739,-480.0,0.00013698,2]
[384223764,1757296232749,-480.0,0.00013698,2]
[384223766,1757296232759,-644.86,0.00013698,2]
[384223768,1757296232768,-480.0,0.00013698,2]
[384223770,1757296232778,-486.78973984,0.00013698,2]
[384223772,1757296232787,-587.56696238,0.00013698,2]
[384223774,1757296232797,-483.28706263,0.00013698,2]
[384223776,1757296232806,-480.0,0.00013698,2]
[384223778,1757296232816,-487.44983241,0.00013698,2]
[384223780,1757296232826,-487.74269048,0.00013698,2]
[384223783,1757296232837,-2142.42,0.00013698,2]
[384223785,1757296232846,-511.08,0.00013698,2]
[384223786,1757296232856,-486.71304322,0.00013698,2]
[384223788,1757296232866,-4169.95,0.00013698,2]
[384223790,1757296232875,-480.0,0.00013698,2]
[384223792,1757296232884,-482.83154329,0.00013698,2]
[384223794,1757296232894,-633.4,0.00013698,2]
[384223796,1757296232904,-486.73737436,0.00013698,2]
[384223798,1757296232914,-480.0,0.00013698,2]
[384223800,1757296232923,-484.79813016,0.00013698,2]
[384223802,1757296232932,-160.03332153,0.00013698,2]
[384223804,1757296232942,-480.0,0.00013698,2]
[384223806,1757296232952,-480.0,0.00013698,2]
[384223808,1757296232961,-483.21918246,0.00013698,2]
[384223810,1757296232971,-480.0,0.00013698,2]
[384223812,1757296232980,-2639.92,0.00013698,2]
[384223814,1757296232990,-512.49,0.00013698,2]
[384223816,1757296232999,-486.4170284,0.00013698,2]
[384223818,1757296233009,-480.0,0.00013698,2]
[384223820,1757296233018,-737.17,0.00013698,2]
[384223822,1757296233027,-480.0,0.00013698,2]
[384223824,1757296233037,-482.04942485,0.00013698,2]
[384223825,1757296233047,-482.75418755,0.00013698,2]
[384223828,1757296233057,-557.5,0.00013698,2]
[384223830,1757296233068,-480.0,0.00013698,2]
[384223831,1757296233078,-480.0,0.00013698,2]
[384223834,1757296233088,-1294.7,0.00013698,2]
[384223836,1757296233098,-531.41,0.00013698,2]
[384223837,1757296233108,-1227.74,0.00013698,2]
[384223840,1757296233119,-480.0,0.00013698,2]
[384223842,1757296233130,-587.28314795,0.00013698,2]
[384223844,1757296233139,-480.0,0.00013698,2]
[384223846,1757296233149,-480.0,0.00013698,2]
[384223848,1757296233159,-1667.8,0.00013698,2]
[384223849,1757296233169,-499.21,0.00013698,2]
[384223851,1757296233179,-1682.46258496,0.00013698,2]
[384224295,1757296238087,-478.81007934,0.00013698,2]
[384224329,1757296240016,-100.0273357,0.00013698,2]
[384224330,1757296240026,-480.0,0.00013698,2]
[384224331,1757296240035,-294.92783686,0.00013698,2]
[384224332,1757296240047,-185.07216314,0.00013698,2]
[384224333,1757296240057,-483.32924637,0.00013698,2]
[384224334,1757296240066,-1258.71,0.00013698,2]
[384224335,1757296240076,-480.0,0.00013698,2]
[384224336,1757296240085,-487.99309617,0.00013698,2]
[384224337,1757296240095,-480.0,0.00013698,2]
[384224338,1757296240106,-480.0,0.00013698,2]
[384224339,1757296240116,-480.0,0.00013698,2]
[384224340,1757296240125,-483.04687485,0.00013698,2]
[384224341,1757296240134,-509.21,0.00013698,2]
[384224342,1757296240143,-986.38,0.00013698,2]
[384224343,1757296240152,-480.0,0.00013698,2]
[384224344,1757296240161,-626.06,0.00013698,2]
[384224345,1757296240171,-706.7,0.00013698,2]
[384224346,1757296240180,-480.0,0.00013698,2]
[384224347,1757296240189,-480.0,0.00013698,2]
[384224348,1757296240200,-480.0,0.00013698,2]
[384224349,1757296240209,-480.0,0.00013698,2]
[384224350,1757296240219,-480.0,0.00013698,2]
[384224351,1757296240227,-533.31,0.00013698,2]
[384224352,1757296240237,-480.0,0.00013698,2]
[384224353,1757296240246,-480.0,0.00013698,2]
[384224354,1757296240256,-480.0,0.00013698,2]
[384224355,1757296240266,-480.0,0.00013698,2]
[384224356,1757296240275,-3842.57645596,0.00013698,2]
[384224358,1757296240291,-1597.59919671,0.00013698,2]
[384224637,1757296246274,-5537.34565444,0.00013598,2]
[384224638,1757296246432,-397.65649073,0.00013598,2]
[384224639,1757296246444,-1140.76721883,0.00013598,2]
[384224642,1757296277588,213.26074973,0.00013058,2]
[384224643,1757296303247,213.26074973,0.00013058,2]
[384224644,1757296327293,213.26074973,0.00013058,2]
[384224645,1757296351797,213.26074973,0.00013058,2]
[384224647,1757296375434,213.26074973,0.00013058,2]
[384224648,1757296398571,213.26074973,0.00013058,2]
[384224649,1757296422822,213.26074973,0.00013058,2]
[384224650,1757296433630,217.1264695,0.0001309,2]
[384224651,1757296505204,1578.6121219,0.00012673,2]
[384224677,1757297116257,160.4,0.00013,2]
[384224774,1757297432270,-213.26074973,0.0001319,2]
[384224776,1757297432280,-1200.0,0.00013597,2]
[384224778,1757297432290,-300.0,0.00013597,2]
[384224780,1757297432300,-300.0,0.00013597,2]
[384224782,1757297432309,-1200.0,0.00013597,2]
[384224784,1757297432320,-142.85740196,0.00013598,2]
[384224802,1757297432482,-705.95777025,0.00013598,2]
[384224806,1757297432494,-520.53481035,0.00013598,2]
[384224810,1757297432510,-653.22662061,0.00013598,2]
[384224813,1757297432520,-40289.46678518,0.00013598,2]
[384224816,1757297432529,-731.70589287,0.00013624,2]
[384224818,1757297432539,-500.0,0.00013697,2]
[384224820,1757297432548,-481.55674945,0.00013697,2]
[384224822,1757297432557,-503.59418447,0.00013697,2]
[384224824,1757297432566,-219.95740334,0.00013697,2]
[384224826,1757297432575,-500.0,0.00013697,2]
[384224828,1757297432584,-500.0,0.00013697,2]
[384224830,1757297432593,-500.0,0.00013697,2]
[384224832,1757297432603,-500.0,0.00013697,2]
[384224834,1757297432612,-500.0,0.00013697,2]
[384224836,1757297432621,-500.0,0.00013697,2]
[384224838,1757297432633,-472.5303595,0.00013697,2]
[384224840,1757297432642,-500.0,0.00013697,2]
[384224842,1757297432651,-500.0,0.00013697,2]
[384224844,1757297432660,-553.8662944,0.00013697,2]
[384224846,1757297432669,-208.27655188,0.00013697,2]
[384224848,1757297432678,-331.63116409,0.00013697,2]
[384224850,1757297432687,-248.03020474,0.00013697,2]
[384224852,1757297432696,-500.0,0.00013697,2]
[384224854,1757297432706,-200.0,0.00013697,2]
[384224856,1757297432715,-500.0,0.00013697,2]
[384224858,1757297432724,-780.90439722,0.00013698,2]
[384224860,1757297432733,-274.24025385,0.00013698,2]
[384224862,1757297432743,-480.0,0.00013698,2]
[384224864,1757297432753,-480.0,0.00013698,2]
[384224866,1757297432763,-480.0,0.00013698,2]
[384224868,1757297432772,-488.27264819,0.00013698,2]
[384224870,1757297432781,-480.0,0.00013698,2]
[384224872,1757297432790,-480.0,0.00013698,2]
[384224874,1757297432800,-480.0,0.00013698,2]
[384224876,1757297432810,-480.0,0.00013698,2]
[384224878,1757297432820,-480.0,0.00013698,2]
[384224880,1757297432830,-480.0,0.00013698,2]
[384224882,1757297432840,-380.96347784,0.00013698,2]
[384224884,1757297432849,-480.0,0.00013698,2]
[384224885,1757297432858,-480.0,0.00013698,2]
[384224887,1757297432868,-489.29505687,0.00013698,2]
[384224889,1757297432878,-480.0,0.00013698,2]
[384224891,1757297432887,-480.0,0.00013698,2]
[384224893,1757297432896,-480.0,0.00013698,2]
[384224895,1757297432906,-710.48,0.00013698,2]
[384224897,1757297432916,-480.0,0.00013698,2]
[384224899,1757297432925,-482.73447172,0.00013698,2]
[384224901,1757297432934,-480.0,0.00013698,2]
[384224903,1757297432943,-480.0,0.00013698,2]
[384224905,1757297432952,-487.31083666,0.00013698,2]
[384224907,1757297432962,-480.0,0.00013698,2]
[384224909,1757297432972,-492.42854525,0.00013698,2]
[384224911,1757297432981,-480.0,0.00013698,2]
[384224913,1757297432991,-485.09429888,0.00013698,2]
[384224915,1757297433001,-510.99289691,0.00013698,2]
[384224917,1757297433010,-483.00782245,0.00013698,2]
[384224918,1757297433020,-480.0,0.00013698,2]
[384224919,1757297433030,-483.27708448,0.00013698,2]
[384224920,1757297433042,-480.0,0.00013698,2]
[384224921,1757297433056,-485.42472001,0.00013698,2]
[384224922,1757297433071,-480.0,0.00013698,2]
[384224923,1757297433089,-482.08996497,0.00013698,2]
[384224924,1757297433103,-480.0,0.00013698,2]
[384224925,1757297433115,-480.0,0.00013698,2]
[384224926,1757297433129,-477.0105559,0.00013698,2]
[384224927,1757297433142,-482.64239556,0.00013698,2]
[384224928,1757297433156,-482.00080585,0.00013698,2]
[384224929,1757297433169,-617.99,0.00013698,2]
[384224930,1757297433183,-481.58384119,0.00013698,2]
[384224931,1757297433196,-480.0,0.00013698,2]
[384224932,1757297433210,-480.0,0.00013698,2]
[384224933,1757297433224,-403.40306841,0.00013698,2]
[384224934,1757297433236,-2053.16,0.00013698,2]
[384224935,1757297433248,-480.0,0.00013698,2]
[384224937,1757297433261,-480.0,0.00013698,2]
[384224938,1757297433274,-483.22890008,0.00013698,2]
[384224939,1757297433286,-3996.2,0.00013698,2]
[384224941,1757297433299,-482.17660209,0.00013698,2]
[384224943,1757297433313,-485.65077636,0.00013698,2]
[384224946,1757297433325,-480.0,0.00013698,2]
[384224947,1757297433339,-481.39774645,0.00013698,2]
[384224948,1757297433351,-480.0,0.00013698,2]
[384224950,1757297433361,-534.27,0.00013698,2]
[384224952,1757297433374,-582.02554439,0.00013698,2]
[384224955,1757297433387,-480.0,0.00013698,2]
[384224957,1757297433399,-489.78,0.00013698,2]
[384224959,1757297433412,-480.0,0.00013698,2]
[384224961,1757297433427,-480.0,0.00013698,2]
[384224963,1757297433440,-480.0,0.00013698,2]
[384224965,1757297433453,-480.0,0.00013698,2]
[384224968,1757297433465,-491.13,0.00013698,2]
[384224969,1757297433478,-607.01,0.00013698,2]
[384224970,1757297433489,-706.45,0.00013698,2]
[384224971,1757297433501,-480.0,0.00013698,2]
[384224973,1757297433512,-1240.75,0.00013698,2]
[384224974,1757297433524,-480.0,0.00013698,2]
[384224975,1757297433539,-509.27,0.00013698,2]
[384224976,1757297433553,-480.0,0.00013698,2]
[384224977,1757297433567,-480.0,0.00013698,2]
[384224978,1757297433578,-554.07751191,0.00013698,2]
[384224979,1757297433591,-480.0,0.00013698,2]
[384224980,1757297433603,-2529.92,0.00013698,2]
[384224981,1757297433616,-487.99,0.00013698,2]
[384224982,1757297433628,-1598.31,0.00013698,2]
[384224983,1757297433640,-480.0,0.00013698,2]
[384224984,1757297433651,-945.28,0.00013698,2]
[384224985,1757297433661,-484.42275056,0.00013698,2]
[384224986,1757297433673,-1176.58,0.00013698,2]
[384224987,1757297433684,-481.71513019,0.00013698,2]
[384224988,1757297433694,-2167.08,0.00013698,2]
[384224989,1757297433707,-1206.26,0.00013698,2]
[384224990,1757297433720,-480.0,0.00013698,2]
[384224991,1757297433732,-238.18459427,0.00013698,2]
[384224992,1757297433748,-241.81540573,0.00013698,2]
[384224993,1757297433760,-480.0,0.00013698,2]
[384224994,1757297433772,-480.0,0.00013698,2]
[384224995,1757297433783,-480.0,0.00013698,2]
[384224996,1757297433794,-511.09,0.00013698,2]
[384224997,1757297433805,-480.0,0.00013698,2]
[384224998,1757297433817,-480.0,0.00013698,2]
[384224999,1757297433828,-677.25,0.00013698,2]
[384225000,1757297433840,-480.0,0.00013698,2]
[384225001,1757297433852,-485.78197344,0.00013698,2]
[384225002,1757297433866,-480.0,0.00013698,2]
[384225003,1757297433878,-480.0,0.00013698,2]
[384225004,1757297433890,-480.0,0.00013698,2]
[384225005,1757297433902,-480.0,0.00013698,2]
[384225006,1757297433914,-480.0,0.00013698,2]
[384225007,1757297433925,-1281.95,0.00013698,2]
[384225008,1757297433937,-599.97,0.00013698,2]
[384225009,1757297433949,-9223.13,0.00013698,2]
[384225010,1757297433961,-480.0,0.00013698,2]
[384225011,1757297433972,-480.0,0.00013698,2]
[384225012,1757297433984,-480.0,0.00013698,2]
[384225013,1757297433995,-523.94,0.00013698,2]
[384225014,1757297434006,-703.66,0.00013698,2]
[384225015,1757297434018,-480.0,0.00013698,2]
[384225016,1757297434029,-1624.3,0.00013698,2]
[384225017,1757297434040,-511.38,0.00013698,2]
[384225018,1757297434051,-480.0,0.00013698,2]
[384225019,1757297434063,-665.05,0.00013698,2]
[384225020,1757297434075,-480.0,0.00013698,2]
[384225021,1757297434091,-1331.36,0.00013698,2]
[384225022,1757297434103,-1099.67,0.00013698,2]
[384225023,1757297434115,-480.0,0.00013698,2]
[384225024,1757297434127,-480.0,0.00013698,2]
[384225025,1757297434139,-480.0,0.00013698,2]
[384225026,1757297434150,-496.89,0.00013698,2]
[384225027,1757297434163,-480.0,0.00013698,2]
[384225028,1757297434175,-1007.43,0.00013698,2]
[384225029,1757297434186,-480.0,0.00013698,2]
[384225030,1757297434197,-480.0,0.00013698,2]
[384225031,1757297434209,-844.18,0.00013698,2]
[384225032,1757297434220,-616.08,0.00013698,2]
[384225033,1757297434232,-159.6908395,0.00013699,2]
[384225034,1757297434243,-540.321854,0.00013699,2]
[384225035,1757297434255,-2022.57660313,0.00013735,2]
[384225036,1757297434266,-591.19586725,0.00013819,2]
[384225037,1757297434277,-10576.6745308,0.0001383,2]
[384225038,1757297434289,-300.0,0.00013869,2]
[384225039,1757297434301,-300.0,0.00013869,2]
[384225040,1757297434312,-300.0,0.00013869,2]
[384225041,1757297434324,-300.0,0.00013869,2]
[384225042,1757297434336,-300.0,0.00013869,2]
[384225043,1757297434350,-300.0,0.00013869,2]
[384225044,1757297434361,-300.0,0.00013869,2]
[384225045,1757297434371,-300.0,0.00013869,2]
[384225046,1757297434381,-300.0,0.00013869,2]
[384225047,1757297434391,-300.0,0.00013869,2]
[384225048,1757297434401,-300.0,0.00013869,2]
[384225049,1757297434570,-300.0,0.00013869,2]
[384225050,1757297434592,-300.0,0.00013869,2]
[384225051,1757297434602,-300.0,0.00013869,2]
[384225052,1757297434612,-300.0,0.00013869,2]
[384225053,1757297434623,-2022.57660313,0.00013872,2]
[384225054,1757297434632,-345.69220609,0.00013893,2]
[384225055,1757297434642,-447.27373634,0.00013893,2]
[384225056,1757297434652,-217.62647793,0.00013895,2]
[384225057,1757297434661,-530.71506861,0.00013895,2]
[384225058,1757297434671,-160.0,0.00013895,2]
[384225059,1757297434680,-417.15472785,0.00013895,2]
[384225060,1757297434689,-233.03190505,0.00013895,2]
[384225061,1757297434699,-203.26219058,0.00013895,2]
[384225062,1757297434709,-846.71598105,0.00013895,2]
[384225063,1757297434719,-160.0,0.00013895,2]
[384225064,1757297434729,-410.619,0.00013903,2]
[384225065,1757297434739,-600.0,0.00013971,2]
[384225066,1757297434749,-480.0,0.00013972,2]
[384225067,1757297434759,-480.0,0.00013972,2]
[384225068,1757297434768,-480.0,0.00013972,2]
[384225069,1757297434777,-480.0,0.00013972,2]
[384225070,1757297434787,-480.9836223,0.00013972,2]
[384225071,1757297434797,-480.0,0.00013972,2]
[384225072,1757297434806,-480.0,0.00013972,2]
[384225073,1757297434815,-480.0,0.00013972,2]
[384225074,1757297434825,-485.92587256,0.00013972,2]
[384225075,1757297434835,-480.0,0.00013972,2]
[384225076,1757297434844,-480.0,0.00013972,2]
[384225077,1757297434853,-480.0,0.00013972,2]
[384225078,1757297434863,-480.0,0.00013972,2]
[384225079,1757297434872,-710.48,0.00013972,2]
[384225080,1757297434881,-480.0,0.00013972,2]
[384225081,1757297434890,-480.0,0.00013972,2]
[384225082,1757297434899,-480.0,0.00013972,2]
[384225083,1757297434909,-480.0,0.00013972,2]
[384225084,1757297434918,-480.0,0.00013972,2]
[384225085,1757297434928,-480.0,0.00013972,2]
[384225086,1757297434937,-480.0,0.00013972,2]
[384225087,1757297434947,-484.68044506,0.00013972,2]
[384225088,1757297434956,-480.0,0.00013972,2]
[384225089,1757297434965,-480.0,0.00013972,2]
[384225090,1757297434974,-617.99,0.00013972,2]
[384225091,1757297434983,-480.0,0.00013972,2]
[384225092,1757297434996,-480.0,0.00013972,2]
[384225093,1757297435005,-2053.16,0.00013972,2]
[384225094,1757297435014,-480.0,0.00013972,2]
[384225095,1757297435023,-480.0,0.00013972,2]
[384225096,1757297435035,-3996.2,0.00013972,2]
[384225097,1757297435045,-480.0,0.00013972,2]
[384225098,1757297435056,-480.0,0.00013972,2]
[384225099,1757297435065,-534.27,0.00013972,2]
[384225100,1757297435074,-480.0,0.00013972,2]
[384225101,1757297435085,-489.78,0.00013972,2]
[384225102,1757297435095,-480.0,0.00013972,2]
[384225103,1757297435104,-480.0,0.00013972,2]
[384225104,1757297435118,-480.0,0.00013972,2]
[384225105,1757297435128,-480.0,0.00013972,2]
[384225106,1757297435138,-491.13,0.00013972,2]
[384225107,1757297435147,-193.76468254,0.00013972,2]
[384225141,1757297438121,-480.0,0.00013698,2]
[384225143,1757297438132,-480.0,0.00013698,2]
[384225145,1757297438141,-241.98454426,0.00013892,2]
[384225147,1757297438150,-289.63627862,0.00013892,2]
[384225881,1757297905854,177.7652986,0.00012943,2]
[384225882,1757297908981,710.35013322,0.00012943,2]
[384225887,1757298116004,10000.0,0.00025,30]
[384225889,1757298169408,10000.0,0.00025,30]
[384225890,1757298239711,10000.0,0.00025,30]
[384225892,1757298273195,10000.0,0.00025,30]
[384225893,1757298302646,10000.0,0.00025,30]
[384225897,1757298418147,-888.5106416,0.00013524,2]
[384225898,1757298418169,-303.0,0.00013597,2]
[384225899,1757298418191,-1200.0,0.00013597,2]
[384225900,1757298418214,-300.0,0.00013597,2]
[384225901,1757298418236,-169.38918098,0.00013597,2]
[384225902,1757298418257,-226.20073185,0.00013597,2]
[384225903,1757298418281,-496.94781772,0.00013597,2]
[384225904,1757298418305,-9790.48298785,0.00013598,2]
[384225907,1757298490308,5972.68298287,0.00028808,120]
[384225908,1757298511939,1198.90685497,0.00028808,60]
[384225909,1757298518710,291.05822231,0.00028808,120]
[384225910,1757298518847,1299.9969838,0.00028808,120]
[384225911,1757298520196,246.43538734,0.00028808,120]
[384225912,1757298527095,466.78788505,0.00028808,120]
[384225913,1757298527410,243.09834997,0.00028808,120]
[384225914,1757298546076,-300.0,0.00013499,2]
[384225915,1757298546314,-3877.64108848,0.000135,2]
[384225916,1757298546354,-10000.01,0.000135,2]
[384225917,1757298553408,-10000.01,0.000135,2]
[384225918,1757298553709,-10000.01,0.000135,2]
[384225921,1757298619262,583.27348455,0.00012943,2]
[384225922,1757298622243,2330.76084427,0.00012943,2]
[384225923,1757298625264,695.87693176,0.00012943,2]
[384225924,1757298627650,2780.7242193,0.00012943,2]
[384225940,1757298632532,-1550.26054185,0.000135,2]
[384225959,1757298638322,-6242.91946603,0.000135,2]
[384225961,1757298638331,-1401.95495848,0.00013511,2]
[384225963,1757298638341,-968.0,0.00013597,2]
[384225965,1757298638351,-5550.76682239,0.00013598,2]
[384225967,1757298638361,-22744.62888811,0.00013598,2]
[384226445,1757298643528,-1486.05904,0.00013598,2]
[384226722,1757298646429,-8346.3097,0.00013598,2]
[384226890,1757298798667,321.89542647,0.00012943,2]
[384226891,1757298801131,1287.58170587,0.00012943,2]
[384226892,1757298803535,1999.89738778,0.00012943,2]
[384226893,1757298803684,897.16145043,0.00012943,2]
[384226894,1757298806079,5150.32682348,0.00012943,2]
[384226896,1757298808442,3952.52172609,0.00012943,2]
[384226897,1757298808464,4086.81654993,0.00012943,2]
[384226898,1757298821618,-5913.19345007,0.00013498,2]
[384226899,1757298821756,-10000.01,0.00013498,2]
[384226900,1757298821881,-10000.01,0.00013498,2]
[384226901,1757298822025,-10000.01,0.00013498,2]
[384226902,1757298822141,-10000.01,0.00013498,2]
[384226903,1757298822279,-10000.01,0.00013498,2]
[384226904,1757298831338,-10000.01,0.00013498,2]
[384226905,1757298831457,-10000.01,0.00013498,2]
[384226906,1757298843895,244.39,0.00012329,2]
[384226909,1757298863953,480.0,0.00024657,120]
[384226911,1757298906389,-349.76791246,0.00013229,2]
[384226912,1757298906420,-349.76791246,0.00013363,2]
[384226913,1757298906450,-1572.97645086,0.00013498,2]
[384226914,1757298906541,-5210.59544844,0.00013498,2]
[384226918,1757298926320,193.69,0.00012329,2]
[384226923,1757299126438,244.39,0.00013097,2]
[384226924,1757299136091,244.39,0.00013097,2]
[384226925,1757299353031,244.39,0.00013097,2]
[384226926,1757299361893,244.39,0.00013097,2]
[384226928,1757299478223,774.0322769,0.00012657,2]
[384226929,1757299504675,666.0,0.00012657,2]
[384226931,1757299577306,244.39,0.00013097,2]
[384226932,1757299605130,-244.39,0.00013229,2]
[384226933,1757299605152,-244.39,0.00013363,2]
[384226934,1757299605175,-244.39,0.00013498,2]
[384226935,1757299605198,-192.263235,0.00013597,2]
[384226940,1757299828687,1007.736765,0.00013061,2]
[384226941,1757299830516,-4000.0,0.00018,10]
[384226954,1757299832628,-586.3422425,0.00013193,2]
[384226955,1757299832640,-421.3945225,0.00013193,2]
[384226956,1757299832650,-300.0,0.00013537,2]
[384226957,1757299832660,-300.0,0.00013537,2]